[Event "Titled Tuesday Blitz August 16 Early 2022"]
[White "Clawitter, Craig"]
[Black "Leve, Nitai"]
[WhiteFideId "2023105"]
[BlackFideId "2006898"]
[WhiteElo "2050"]
[BlackElo "2144"]
[Result "0-1"]
[Round "11"]
[TimeControl "180+2"]
[Date "2022.08.18"]
[WhiteClock "0:00:00"]
[BlackClock "0:00:00"]

1. e4 {[%clk 0:00:00]}  c6 {[%clk 0:00:00]} 2. Nf3 {[%clk 0:00:00]}  d5 {[%clk 0:00:00]} 3. e5 {[%clk 0:00:00]}  c5 {[%clk 0:00:00]} 4. d4 {[%clk 0:00:00]}  Nc6 {[%clk 0:00:00]} 5. dxc5 {[%clk 0:00:00]}  Bg4 {[%clk 0:00:00]} 6. Bb5 {[%clk 0:00:00]}  e6 {[%clk 0:00:00]} 7. c3 {[%clk 0:00:00]}  Bxc5 {[%clk 0:00:00]} 8. Bxc6+ {[%clk 0:00:00]}  bxc6 {[%clk 0:00:00]} 9. Qa4 {[%clk 0:00:00]}  Bxf3 {[%clk 0:00:00]} 10. Qxc6+ {[%clk 0:00:00]}  Kf8 {[%clk 0:00:00]} 11. Qxc5+ {[%clk 0:00:00]}  Ne7 {[%clk 0:00:00]} 12. gxf3 {[%clk 0:00:00]}  Rc8 {[%clk 0:00:00]} 13. Qa3 {[%clk 0:00:00]}  h6 {[%clk 0:00:00]} 14. Be3 {[%clk 0:00:00]}  Kg8 {[%clk 0:00:00]} 15. Nd2 {[%clk 0:00:00]}  Nf5 {[%clk 0:00:00]} 16. Bf4 {[%clk 0:00:00]}  d4 {[%clk 0:00:00]} 17. Ne4 {[%clk 0:00:00]}  dxc3 {[%clk 0:00:00]} 18. bxc3 {[%clk 0:00:00]}  Qd3 {[%clk 0:00:00]} 19. Nd2 {[%clk 0:00:00]}  Nd4 {[%clk 0:00:00]} 20. Kd1 {[%clk 0:00:00]}  Rxc3 {[%clk 0:00:00]} 21. Qxa7 {[%clk 0:00:00]}  Qe2# {[%clk 0:00:00]} 0-1


[Site "https://www.chess.com"]

[Event "Titled Tuesday Blitz August 16 Early 2022"]
[White "Cramling Bellon, Anna"]
[Black "Fernandez Siles, Luis"]
[WhiteFideId "32009232"]
[BlackFideId "2209420"]
[WhiteElo "1905"]
[BlackElo "2211"]
[Result "0-1"]
[Round "11"]
[TimeControl "180+2"]
[Date "2022.08.18"]
[WhiteClock "0:00:00"]
[BlackClock "0:00:00"]

1. d4 {[%clk 0:00:00]}  f5 {[%clk 0:00:00]} 2. e4 {[%clk 0:00:00]}  fxe4 {[%clk 0:00:00]} 3. Nc3 {[%clk 0:00:00]}  Nf6 {[%clk 0:00:00]} 4. Bg5 {[%clk 0:00:00]}  Nc6 {[%clk 0:00:00]} 5. d5 {[%clk 0:00:00]}  Ne5 {[%clk 0:00:00]} 6. Qd4 {[%clk 0:00:00]}  Nf7 {[%clk 0:00:00]} 7. h4 {[%clk 0:00:00]}  e5 {[%clk 0:00:00]} 8. dxe6 {[%clk 0:00:00]}  dxe6 {[%clk 0:00:00]} 9. Qxd8+ {[%clk 0:00:00]}  Nxd8 {[%clk 0:00:00]} 10. Bxf6 {[%clk 0:00:00]}  gxf6 {[%clk 0:00:00]} 11. Nxe4 {[%clk 0:00:00]}  Be7 {[%clk 0:00:00]} 12. O-O-O {[%clk 0:00:00]}  Nc6 {[%clk 0:00:00]} 13. Nf3 {[%clk 0:00:00]}  Bd7 {[%clk 0:00:00]} 14. Bb5 {[%clk 0:00:00]}  a6 {[%clk 0:00:00]} 15. Ba4 {[%clk 0:00:00]}  O-O-O {[%clk 0:00:00]} 16. Rhe1 {[%clk 0:00:00]}  Rhg8 {[%clk 0:00:00]} 17. g3 {[%clk 0:00:00]}  Rg4 {[%clk 0:00:00]} 18. Bb3 {[%clk 0:00:00]}  Na5 {[%clk 0:00:00]} 19. Nd4 {[%clk 0:00:00]}  Nxb3+ {[%clk 0:00:00]} 20. Nxb3 {[%clk 0:00:00]}  b6 {[%clk 0:00:00]} 21. f3 {[%clk 0:00:00]}  Rgg8 {[%clk 0:00:00]} 22. Nd4 {[%clk 0:00:00]}  c5 {[%clk 0:00:00]} 23. Ne2 {[%clk 0:00:00]}  Bb5 {[%clk 0:00:00]} 24. Nf4 {[%clk 0:00:00]}  Rxd1+ {[%clk 0:00:00]} 25. Rxd1 {[%clk 0:00:00]}  f5 {[%clk 0:00:00]} 26. Nc3 {[%clk 0:00:00]}  Bd7 {[%clk 0:00:00]} 27. Rg1 {[%clk 0:00:00]}  Bd6 {[%clk 0:00:00]} 28. Nfe2 {[%clk 0:00:00]}  Bc6 {[%clk 0:00:00]} 29. f4 {[%clk 0:00:00]}  b5 {[%clk 0:00:00]} 30. a3 {[%clk 0:00:00]}  Bf3 {[%clk 0:00:00]} 31. Rd1 {[%clk 0:00:00]}  Kc7 {[%clk 0:00:00]} 32. Rd2 {[%clk 0:00:00]}  b4 {[%clk 0:00:00]} 33. axb4 {[%clk 0:00:00]}  cxb4 {[%clk 0:00:00]} 34. Nd1 {[%clk 0:00:00]}  Bc5 {[%clk 0:00:00]} 35. Nd4 {[%clk 0:00:00]}  Bd5 {[%clk 0:00:00]} 36. Ne2 {[%clk 0:00:00]}  a5 {[%clk 0:00:00]} 37. c3 {[%clk 0:00:00]}  a4 {[%clk 0:00:00]} 38. cxb4 {[%clk 0:00:00]}  Bxb4 {[%clk 0:00:00]} 39. Rd4 {[%clk 0:00:00]}  Rb8 {[%clk 0:00:00]} 40. Ndc3 {[%clk 0:00:00]}  Bb3 {[%clk 0:00:00]} 0-1


[Site "https://www.chess.com"]

[Event "Titled Tuesday Blitz August 16 Early 2022"]
[White "Csonka, Balazs"]
[Black "Suder, Jakub"]
[WhiteFideId "742910"]
[BlackFideId "1195310"]
[WhiteElo "2404"]
[BlackElo "2095"]
[Result "0-1"]
[Round "11"]
[TimeControl "180+1"]
[Date "2022.08.16"]
[WhiteClock "0:00:03"]
[BlackClock "0:01:03"]

1. d4 {[%clk 0:02:58]}  d5 {[%clk 0:02:58]} 2. c4 {[%clk 0:02:56]}  dxc4 {[%clk 0:02:58]} 3. Nf3 {[%clk 0:02:56]}  a6 {[%clk 0:02:57]} 4. e3 {[%clk 0:02:52]}  Bg4 {[%clk 0:02:57]} 5. Bxc4 {[%clk 0:02:52]}  e6 {[%clk 0:02:57]} 6. O-O {[%clk 0:02:51]}  Nc6 {[%clk 0:02:58]} 7. h3 {[%clk 0:02:48]}  Bh5 {[%clk 0:02:58]} 8. Nbd2 {[%clk 0:02:48]}  Nf6 {[%clk 0:02:57]} 9. b3 {[%clk 0:02:46]}  Bd6 {[%clk 0:02:57]} 10. Bb2 {[%clk 0:02:46]}  Qe7 {[%clk 0:02:56]} 11. Be2 {[%clk 0:02:44]}  Rd8 {[%clk 0:02:53]} 12. Rc1 {[%clk 0:02:32]}  O-O {[%clk 0:02:52]} 13. Nc4 {[%clk 0:02:21]}  Bg6 {[%clk 0:02:39]} 14. Bd3 {[%clk 0:01:33]}  Bxd3 {[%clk 0:02:36]} 15. Qxd3 {[%clk 0:01:34]}  Qd7 {[%clk 0:02:31]} 16. a3 {[%clk 0:01:20]}  Rfe8 {[%clk 0:02:28]} 17. Rfd1 {[%clk 0:01:17]}  b5 {[%clk 0:02:26]} 18. Ncd2 {[%clk 0:01:01]}  e5 {[%clk 0:02:26]} 19. Qc2 {[%clk 0:00:57]}  e4 {[%clk 0:02:02]} 20. Qxc6 {[%clk 0:00:56]}  exf3 {[%clk 0:02:02]} 21. Qxd7 {[%clk 0:00:47]}  Nxd7 {[%clk 0:02:02]} 22. Nxf3 {[%clk 0:00:47]}  Kf8 {[%clk 0:02:03]} 23. Kf1 {[%clk 0:00:43]}  f5 {[%clk 0:02:03]} 24. Rc2 {[%clk 0:00:41]}  Nb6 {[%clk 0:02:03]} 25. Rc6 {[%clk 0:00:35]}  Ke7 {[%clk 0:01:59]} 26. Rdc1 {[%clk 0:00:34]}  Kd7 {[%clk 0:01:59]} 27. Ne5+ {[%clk 0:00:30]}  Bxe5 {[%clk 0:01:59]} 28. dxe5 {[%clk 0:00:31]}  Rc8 {[%clk 0:01:55]} 29. Bd4 {[%clk 0:00:17]}  Nd5 {[%clk 0:01:46]} 30. Rxa6 {[%clk 0:00:14]}  Ra8 {[%clk 0:01:46]} 31. e6+ {[%clk 0:00:12]}  Ke7 {[%clk 0:01:44]} 32. Bc5+ {[%clk 0:00:09]}  Kf6 {[%clk 0:01:41]} 33. Bd4+ {[%clk 0:00:09]}  Ke7 {[%clk 0:01:41]} 34. Rxa8 {[%clk 0:00:08]}  Rxa8 {[%clk 0:01:41]} 35. a4 {[%clk 0:00:04]}  bxa4 {[%clk 0:01:42]} 36. bxa4 {[%clk 0:00:05]}  Rxa4 {[%clk 0:01:41]} 37. Bxg7 {[%clk 0:00:05]}  Kxe6 {[%clk 0:01:41]} 38. g3 {[%clk 0:00:05]}  Ra2 {[%clk 0:01:41]} 39. Bd4 {[%clk 0:00:04]}  Kd6 {[%clk 0:01:37]} 40. Bc5+ {[%clk 0:00:04]}  Ke5 {[%clk 0:01:36]} 41. Bd4+ {[%clk 0:00:04]}  Ke4 {[%clk 0:01:37]} 42. Kg2 {[%clk 0:00:03]}  Kd3 {[%clk 0:01:37]} 43. Rc6 {[%clk 0:00:03]}  Ke2 {[%clk 0:01:35]} 44. Re6 {[%clk 0:00:04]}  Ke1 {[%clk 0:01:35]} 45. e4 {[%clk 0:00:04]}  fxe4 {[%clk 0:01:34]} 46. Rxe4+ {[%clk 0:00:05]}  Kd2 {[%clk 0:01:34]} 47. Re5 {[%clk 0:00:05]}  c6 {[%clk 0:01:29]} 48. Re6 {[%clk 0:00:05]}  Rc2 {[%clk 0:01:29]} 49. h4 {[%clk 0:00:05]}  c5 {[%clk 0:01:28]} 50. Bg7 {[%clk 0:00:05]}  Kd3 {[%clk 0:01:23]} 51. Rd6 {[%clk 0:00:04]}  Ke4 {[%clk 0:01:23]} 52. Re6+ {[%clk 0:00:04]}  Kd3 {[%clk 0:01:23]} 53. Re8 {[%clk 0:00:04]}  c4 {[%clk 0:01:23]} 54. g4 {[%clk 0:00:04]}  c3 {[%clk 0:01:13]} 55. Rd8 {[%clk 0:00:05]}  Ke4 {[%clk 0:01:13]} 56. Kg3 {[%clk 0:00:05]}  Rd2 {[%clk 0:01:10]} 57. f3+ {[%clk 0:00:05]}  Ke3 {[%clk 0:01:01]} 58. Bh6+ {[%clk 0:00:06]}  Kd4 {[%clk 0:01:02]} 59. Bxd2 {[%clk 0:00:06]}  cxd2 {[%clk 0:01:03]} 60. g5 {[%clk 0:00:04]}  d1=Q {[%clk 0:01:03]} 61. Ra8 {[%clk 0:00:03]}  Qg1+ {[%clk 0:01:02]} 62. Kh3 {[%clk 0:00:03]}  Nf4# {[%clk 0:01:03]} 0-1


[Site "https://www.chess.com"]

[Event "Titled Tuesday Blitz August 16 Early 2022"]
[White "D`Arruda, Ricardo D."]
[Black "Melikyan, Gnel"]
[WhiteFideId "100692"]
[BlackFideId "54109990"]
[WhiteElo "2271"]
[BlackElo "1772"]
[Result "1-0"]
[Round "11"]
[TimeControl "180+2"]
[Date "2022.08.18"]
[WhiteClock "0:00:00"]
[BlackClock "0:00:00"]

1. d4 {[%clk 0:00:00]}  Nf6 {[%clk 0:00:00]} 2. Nf3 {[%clk 0:00:00]}  c5 {[%clk 0:00:00]} 3. d5 {[%clk 0:00:00]}  g6 {[%clk 0:00:00]} 4. Nc3 {[%clk 0:00:00]}  Bg7 {[%clk 0:00:00]} 5. e4 {[%clk 0:00:00]}  O-O {[%clk 0:00:00]} 6. Be2 {[%clk 0:00:00]}  a6 {[%clk 0:00:00]} 7. O-O {[%clk 0:00:00]}  b5 {[%clk 0:00:00]} 8. e5 {[%clk 0:00:00]}  Ne8 {[%clk 0:00:00]} 9. Bf4 {[%clk 0:00:00]}  d6 {[%clk 0:00:00]} 10. Ne4 {[%clk 0:00:00]}  Bf5 {[%clk 0:00:00]} 11. Ng3 {[%clk 0:00:00]}  Bg4 {[%clk 0:00:00]} 12. Re1 {[%clk 0:00:00]}  Nd7 {[%clk 0:00:00]} 13. e6 {[%clk 0:00:00]}  fxe6 {[%clk 0:00:00]} 14. Ng5 {[%clk 0:00:00]}  Bxe2 {[%clk 0:00:00]} 15. Qxe2 {[%clk 0:00:00]}  Nc7 {[%clk 0:00:00]} 16. Nxe6 {[%clk 0:00:00]}  Nxe6 {[%clk 0:00:00]} 17. Qxe6+ {[%clk 0:00:00]}  Kh8 {[%clk 0:00:00]} 18. Bg5 {[%clk 0:00:00]}  Nf6 {[%clk 0:00:00]} 19. Re2 {[%clk 0:00:00]}  Qc8 {[%clk 0:00:00]} 20. Rd1 {[%clk 0:00:00]}  h6 {[%clk 0:00:00]} 21. Bc1 {[%clk 0:00:00]}  Qxe6 {[%clk 0:00:00]} 22. Rxe6 {[%clk 0:00:00]}  Ng8 {[%clk 0:00:00]} 23. Rxg6 {[%clk 0:00:00]}  Bd4 {[%clk 0:00:00]} 24. Ne4 {[%clk 0:00:00]}  Rf5 {[%clk 0:00:00]} 25. c3 {[%clk 0:00:00]}  Bg7 {[%clk 0:00:00]} 26. f3 {[%clk 0:00:00]}  Raf8 {[%clk 0:00:00]} 27. h4 {[%clk 0:00:00]}  Kh7 {[%clk 0:00:00]} 28. Rg4 {[%clk 0:00:00]}  Nf6 {[%clk 0:00:00]} 29. Nxf6+ {[%clk 0:00:00]}  exf6 {[%clk 0:00:00]} 30. Re4 {[%clk 0:00:00]}  Re5 {[%clk 0:00:00]} 31. Bf4 {[%clk 0:00:00]}  Rxe4 {[%clk 0:00:00]} 32. fxe4 {[%clk 0:00:00]}  Rd8 {[%clk 0:00:00]} 33. Kf2 {[%clk 0:00:00]}  Kg6 {[%clk 0:00:00]} 34. g4 {[%clk 0:00:00]}  h5 {[%clk 0:00:00]} 35. Kf3 {[%clk 0:00:00]}  hxg4+ {[%clk 0:00:00]} 36. Kxg4 {[%clk 0:00:00]}  Kf7 {[%clk 0:00:00]} 37. Kf5 {[%clk 0:00:00]}  Rh8 {[%clk 0:00:00]} 38. Bxd6 {[%clk 0:00:00]}  Rxh4 {[%clk 0:00:00]} 39. Bg3 {[%clk 0:00:00]}  Rh5+ {[%clk 0:00:00]} 40. Kg4 {[%clk 0:00:00]}  Rg5+ {[%clk 0:00:00]} 41. Kf3 {[%clk 0:00:00]}  Ke7 {[%clk 0:00:00]} 42. Rh1 {[%clk 0:00:00]}  c4 {[%clk 0:00:00]} 43. Rh7 {[%clk 0:00:00]}  Kf7 {[%clk 0:00:00]} 44. d6 {[%clk 0:00:00]}  f5 {[%clk 0:00:00]} 45. e5 {[%clk 0:00:00]}  Kg6 {[%clk 0:00:00]} 46. e6 {[%clk 0:00:00]}  Kxh7 {[%clk 0:00:00]} 47. e7 {[%clk 0:00:00]}  f4 {[%clk 0:00:00]} 48. Bxf4 {[%clk 0:00:00]}  Rf5 {[%clk 0:00:00]} 49. e8=Q {[%clk 0:00:00]} 1-0


[Site "https://www.chess.com"]

[Event "Titled Tuesday Blitz August 16 Early 2022"]
[White "Delorme, Axel"]
[Black "Kovacevic, Radmila"]
[WhiteFideId "632023"]
[BlackFideId "933171"]
[WhiteElo "2474"]
[BlackElo "2157"]
[Result "1-0"]
[Round "11"]
[TimeControl "180+2"]
[Date "2022.08.18"]
[WhiteClock "0:00:00"]
[BlackClock "0:00:00"]

1. d4 {[%clk 0:00:00]}  e5 {[%clk 0:00:00]} 2. dxe5 {[%clk 0:00:00]}  Nc6 {[%clk 0:00:00]} 3. Nf3 {[%clk 0:00:00]}  Qe7 {[%clk 0:00:00]} 4. Nc3 {[%clk 0:00:00]}  Nxe5 {[%clk 0:00:00]} 5. Nxe5 {[%clk 0:00:00]}  Qxe5 {[%clk 0:00:00]} 6. Qd5 {[%clk 0:00:00]}  Qxd5 {[%clk 0:00:00]} 7. Nxd5 {[%clk 0:00:00]}  Bd6 {[%clk 0:00:00]} 8. Bg5 {[%clk 0:00:00]}  c6 {[%clk 0:00:00]} 9. Nc3 {[%clk 0:00:00]}  Be5 {[%clk 0:00:00]} 10. O-O-O {[%clk 0:00:00]}  d5 {[%clk 0:00:00]} 11. f4 {[%clk 0:00:00]}  Bxc3 {[%clk 0:00:00]} 12. bxc3 {[%clk 0:00:00]}  Bf5 {[%clk 0:00:00]} 13. Rg1 {[%clk 0:00:00]}  f6 {[%clk 0:00:00]} 14. g4 {[%clk 0:00:00]}  Be4 {[%clk 0:00:00]} 15. Bh4 {[%clk 0:00:00]}  O-O-O {[%clk 0:00:00]} 16. e3 {[%clk 0:00:00]}  h5 {[%clk 0:00:00]} 17. g5 {[%clk 0:00:00]}  f5 {[%clk 0:00:00]} 18. c4 {[%clk 0:00:00]}  g6 {[%clk 0:00:00]} 19. cxd5 {[%clk 0:00:00]}  Rxd5 {[%clk 0:00:00]} 20. Rxd5 {[%clk 0:00:00]}  Bxd5 {[%clk 0:00:00]} 21. c4 {[%clk 0:00:00]}  Be4 {[%clk 0:00:00]} 22. Be1 {[%clk 0:00:00]}  Ne7 {[%clk 0:00:00]} 23. Bg2 {[%clk 0:00:00]}  Bd3 {[%clk 0:00:00]} 24. Bf1 {[%clk 0:00:00]}  Be4 {[%clk 0:00:00]} 25. Bc3 {[%clk 0:00:00]}  Re8 {[%clk 0:00:00]} 26. Be2 {[%clk 0:00:00]}  Kc7 {[%clk 0:00:00]} 27. Rd1 {[%clk 0:00:00]}  Nc8 {[%clk 0:00:00]} 28. Be5+ {[%clk 0:00:00]}  Kb6 {[%clk 0:00:00]} 29. Kb2 {[%clk 0:00:00]}  c5 {[%clk 0:00:00]} 30. Kc3 {[%clk 0:00:00]}  Kc6 {[%clk 0:00:00]} 31. h4 {[%clk 0:00:00]}  b6 {[%clk 0:00:00]} 32. Rd2 {[%clk 0:00:00]}  a6 {[%clk 0:00:00]} 33. a4 {[%clk 0:00:00]}  Bh1 {[%clk 0:00:00]} 34. Ra2 {[%clk 0:00:00]}  Nd6 {[%clk 0:00:00]} 35. a5 {[%clk 0:00:00]}  Ne4+ {[%clk 0:00:00]} 36. Kc2 {[%clk 0:00:00]}  b5 {[%clk 0:00:00]} 37. cxb5+ {[%clk 0:00:00]}  axb5 {[%clk 0:00:00]} 38. a6 {[%clk 0:00:00]}  Nd6 {[%clk 0:00:00]} 39. Bxd6 {[%clk 0:00:00]}  Be4+ {[%clk 0:00:00]} 40. Kd2 {[%clk 0:00:00]}  Kxd6 {[%clk 0:00:00]} 41. Bxb5 {[%clk 0:00:00]}  Ra8 {[%clk 0:00:00]} 42. a7 {[%clk 0:00:00]}  Bd5 {[%clk 0:00:00]} 43. Ra6+ {[%clk 0:00:00]}  Kc7 {[%clk 0:00:00]} 44. Rxg6 {[%clk 0:00:00]}  Rxa7 {[%clk 0:00:00]} 45. Rg7+ {[%clk 0:00:00]}  Kb6 {[%clk 0:00:00]} 46. Rxa7 {[%clk 0:00:00]}  Kxa7 {[%clk 0:00:00]} 47. Be8 {[%clk 0:00:00]}  Kb6 {[%clk 0:00:00]} 48. Bxh5 {[%clk 0:00:00]}  Be6 {[%clk 0:00:00]} 49. Kc3 {[%clk 0:00:00]}  Kc6 {[%clk 0:00:00]} 50. Bf3+ {[%clk 0:00:00]}  Kd6 {[%clk 0:00:00]} 51. h5 {[%clk 0:00:00]}  Ke7 {[%clk 0:00:00]} 52. h6 {[%clk 0:00:00]}  Kf8 {[%clk 0:00:00]} 53. e4 {[%clk 0:00:00]}  Kg8 {[%clk 0:00:00]} 54. exf5 {[%clk 0:00:00]}  Bxf5 {[%clk 0:00:00]} 55. Be2 {[%clk 0:00:00]}  Kh8 {[%clk 0:00:00]} 56. Kc4 {[%clk 0:00:00]}  Kh7 {[%clk 0:00:00]} 57. Kxc5 {[%clk 0:00:00]}  Kg6 {[%clk 0:00:00]} 58. Kd4 {[%clk 0:00:00]}  Bd7 {[%clk 0:00:00]} 59. Ke5 {[%clk 0:00:00]}  Bc8 {[%clk 0:00:00]} 60. Bd3+ {[%clk 0:00:00]}  Kf7 {[%clk 0:00:00]} 61. Bf5 {[%clk 0:00:00]} 1-0


[Site "https://www.chess.com"]

[Event "Titled Tuesday Blitz August 16 Early 2022"]
[White "Demchenko, Anton"]
[Black "Zemlyanskii, Ivan"]
[WhiteFideId "4160258"]
[BlackFideId "24249971"]
[WhiteElo "2539"]
[BlackElo "1879"]
[Result "0-1"]
[Round "11"]
[TimeControl "180+1"]
[Date "2022.08.16"]
[WhiteClock "0:00:02"]
[BlackClock "0:00:12"]

1. e4 {[%clk 0:03:00]}  c5 {[%clk 0:02:57]} 2. Nf3 {[%clk 0:03:00]}  e6 {[%clk 0:02:55]} 3. g3 {[%clk 0:02:59]}  Nc6 {[%clk 0:02:55]} 4. Bg2 {[%clk 0:03:00]}  Nf6 {[%clk 0:02:55]} 5. Qe2 {[%clk 0:03:00]}  d5 {[%clk 0:02:53]} 6. exd5 {[%clk 0:03:01]}  Nxd5 {[%clk 0:02:50]} 7. O-O {[%clk 0:03:01]}  Be7 {[%clk 0:02:51]} 8. Rd1 {[%clk 0:03:01]}  Qb6 {[%clk 0:02:50]} 9. Na3 {[%clk 0:02:58]}  O-O {[%clk 0:02:50]} 10. Nc4 {[%clk 0:02:58]}  Qa6 {[%clk 0:02:48]} 11. d3 {[%clk 0:02:58]}  b6 {[%clk 0:02:48]} 12. c3 {[%clk 0:02:52]}  Bb7 {[%clk 0:02:44]} 13. h4 {[%clk 0:02:44]}  Rad8 {[%clk 0:02:37]} 14. h5 {[%clk 0:02:31]}  h6 {[%clk 0:02:36]} 15. a4 {[%clk 0:02:31]}  Bf6 {[%clk 0:02:35]} 16. Bd2 {[%clk 0:02:22]}  Rfe8 {[%clk 0:02:34]} 17. Be1 {[%clk 0:02:17]}  Ba8 {[%clk 0:02:28]} 18. Nfd2 {[%clk 0:02:07]}  Qc8 {[%clk 0:02:18]} 19. Nf3 {[%clk 0:01:51]}  e5 {[%clk 0:02:05]} 20. Nh2 {[%clk 0:01:35]}  Qe6 {[%clk 0:01:49]} 21. Be4 {[%clk 0:01:12]}  Bg5 {[%clk 0:01:36]} 22. Qg4 {[%clk 0:00:58]}  Qe7 {[%clk 0:01:08]} 23. Qe2 {[%clk 0:00:40]}  Qe6 {[%clk 0:01:05]} 24. Bd2 {[%clk 0:00:37]}  Bxd2 {[%clk 0:00:58]} 25. Rxd2 {[%clk 0:00:37]}  Nf6 {[%clk 0:00:52]} 26. Ne3 {[%clk 0:00:35]}  Nxe4 {[%clk 0:00:49]} 27. dxe4 {[%clk 0:00:35]}  Ne7 {[%clk 0:00:50]} 28. f3 {[%clk 0:00:33]}  f5 {[%clk 0:00:37]} 29. Rxd8 {[%clk 0:00:27]}  Rxd8 {[%clk 0:00:37]} 30. exf5 {[%clk 0:00:27]}  Nxf5 {[%clk 0:00:38]} 31. Nxf5 {[%clk 0:00:27]}  Qxf5 {[%clk 0:00:38]} 32. g4 {[%clk 0:00:16]}  Qf4 {[%clk 0:00:38]} 33. Rd1 {[%clk 0:00:12]}  Qg3+ {[%clk 0:00:30]} 34. Kh1 {[%clk 0:00:11]}  Rf8 {[%clk 0:00:26]} 35. Rf1 {[%clk 0:00:02]}  Rf4 {[%clk 0:00:20]} 36. Rg1 {[%clk 0:00:02]}  Rxf3 {[%clk 0:00:12]} 0-1


[Site "https://www.chess.com"]

[Event "Titled Tuesday Blitz August 16 Early 2022"]
[White "Floresvillar Gonzalez, Luis Migu"]
[Black "Qashashvili, Alexandre"]
[WhiteFideId "5100542"]
[BlackFideId "13600842"]
[WhiteElo "2040"]
[BlackElo "2316"]
[Result "0-1"]
[Round "11"]
[TimeControl "180+2"]
[Date "2022.08.18"]
[WhiteClock "0:00:00"]
[BlackClock "0:00:00"]

1. d4 {[%clk 0:00:00]}  d5 {[%clk 0:00:00]} 2. c3 {[%clk 0:00:00]}  c6 {[%clk 0:00:00]} 3. Bf4 {[%clk 0:00:00]}  Bf5 {[%clk 0:00:00]} 4. Qb3 {[%clk 0:00:00]}  Qb6 {[%clk 0:00:00]} 5. Nd2 {[%clk 0:00:00]}  Qxb3 {[%clk 0:00:00]} 6. axb3 {[%clk 0:00:00]}  Nd7 {[%clk 0:00:00]} 7. b4 {[%clk 0:00:00]}  a6 {[%clk 0:00:00]} 8. e3 {[%clk 0:00:00]}  Rc8 {[%clk 0:00:00]} 9. Nb3 {[%clk 0:00:00]}  f6 {[%clk 0:00:00]} 10. Na5 {[%clk 0:00:00]}  e5 {[%clk 0:00:00]} 11. dxe5 {[%clk 0:00:00]}  fxe5 {[%clk 0:00:00]} 12. Bg3 {[%clk 0:00:00]}  Rc7 {[%clk 0:00:00]} 13. Nf3 {[%clk 0:00:00]}  Bd6 {[%clk 0:00:00]} 14. Be2 {[%clk 0:00:00]}  Ngf6 {[%clk 0:00:00]} 15. O-O {[%clk 0:00:00]}  Ne4 {[%clk 0:00:00]} 16. Rfd1 {[%clk 0:00:00]}  Nxg3 {[%clk 0:00:00]} 17. hxg3 {[%clk 0:00:00]}  O-O {[%clk 0:00:00]} 18. Nh4 {[%clk 0:00:00]}  Be6 {[%clk 0:00:00]} 19. e4 {[%clk 0:00:00]}  Nf6 {[%clk 0:00:00]} 20. exd5 {[%clk 0:00:00]}  cxd5 {[%clk 0:00:00]} 21. Nf3 {[%clk 0:00:00]}  Rcf7 {[%clk 0:00:00]} 22. Rd2 {[%clk 0:00:00]}  Ne4 {[%clk 0:00:00]} 23. Rc2 {[%clk 0:00:00]}  Bf5 {[%clk 0:00:00]} 24. Nh4 {[%clk 0:00:00]}  Nxf2 {[%clk 0:00:00]} 25. Nxf5 {[%clk 0:00:00]}  Rxf5 {[%clk 0:00:00]} 26. Bf3 {[%clk 0:00:00]}  e4 {[%clk 0:00:00]} 27. Rxf2 {[%clk 0:00:00]}  exf3 {[%clk 0:00:00]} 28. Rxf3 {[%clk 0:00:00]}  Rxf3 {[%clk 0:00:00]} 29. gxf3 {[%clk 0:00:00]}  Rxf3 {[%clk 0:00:00]} 30. Nxb7 {[%clk 0:00:00]}  Bxg3 {[%clk 0:00:00]} 31. Kg2 {[%clk 0:00:00]}  Re3 {[%clk 0:00:00]} 32. Rxa6 {[%clk 0:00:00]}  h5 {[%clk 0:00:00]} 33. Ra8+ {[%clk 0:00:00]}  Kh7 {[%clk 0:00:00]} 34. b5 {[%clk 0:00:00]}  h4 {[%clk 0:00:00]} 35. b6 {[%clk 0:00:00]}  Re2+ {[%clk 0:00:00]} 36. Kh3 {[%clk 0:00:00]}  Rxb2 {[%clk 0:00:00]} 37. Ra6 {[%clk 0:00:00]}  Bf2 {[%clk 0:00:00]} 38. Nd8 {[%clk 0:00:00]}  Rxb6 {[%clk 0:00:00]} 39. Rxb6 {[%clk 0:00:00]}  Bxb6 {[%clk 0:00:00]} 40. Ne6 {[%clk 0:00:00]}  Ba5 {[%clk 0:00:00]} 41. Kxh4 {[%clk 0:00:00]}  Bxc3 {[%clk 0:00:00]} 42. Kg5 {[%clk 0:00:00]}  Bf6+ {[%clk 0:00:00]} 43. Kf5 {[%clk 0:00:00]}  d4 {[%clk 0:00:00]} 44. Ke4 {[%clk 0:00:00]}  Kh6 {[%clk 0:00:00]} 45. Nxd4 {[%clk 0:00:00]}  Bxd4 {[%clk 0:00:00]} 46. Kxd4 {[%clk 0:00:00]}  Kg5 {[%clk 0:00:00]} 47. Ke4 {[%clk 0:00:00]}  Kg4 {[%clk 0:00:00]} 48. Ke3 {[%clk 0:00:00]}  Kg3 {[%clk 0:00:00]} 49. Ke4 {[%clk 0:00:00]}  g5 {[%clk 0:00:00]} 50. Kf5 {[%clk 0:00:00]}  g4 {[%clk 0:00:00]} 51. Kg5 {[%clk 0:00:00]}  Kf3 {[%clk 0:00:00]} 52. Kf5 {[%clk 0:00:00]}  g3 {[%clk 0:00:00]} 0-1


[Site "https://www.chess.com"]

[Event "Titled Tuesday Blitz August 16 Early 2022"]
[White "Girinath, P.D.S."]
[Black "Kambrath, Yannick"]
[WhiteFideId "5000572"]
[BlackFideId "20632525"]
[WhiteElo "2369"]
[BlackElo "2236"]
[Result "1-0"]
[Round "11"]
[TimeControl "180+1"]
[Date "2022.08.16"]
[WhiteClock "0:00:05"]
[BlackClock "0:00:07"]

1. e4 {[%clk 0:02:49]}  c5 {[%clk 0:02:53]} 2. Nf3 {[%clk 0:02:49]}  e6 {[%clk 0:02:54]} 3. d3 {[%clk 0:02:49]}  b5 {[%clk 0:02:53]} 4. a4 {[%clk 0:02:47]}  b4 {[%clk 0:02:49]} 5. e5 {[%clk 0:02:39]}  Bb7 {[%clk 0:02:49]} 6. Nbd2 {[%clk 0:02:38]}  f6 {[%clk 0:02:48]} 7. Nc4 {[%clk 0:02:37]}  Nc6 {[%clk 0:02:46]} 8. Bf4 {[%clk 0:02:25]}  fxe5 {[%clk 0:02:45]} 9. Nfxe5 {[%clk 0:02:24]}  Nxe5 {[%clk 0:02:41]} 10. Bxe5 {[%clk 0:02:24]}  d6 {[%clk 0:02:34]} 11. Bg3 {[%clk 0:02:14]}  Nf6 {[%clk 0:02:34]} 12. d4 {[%clk 0:01:56]}  cxd4 {[%clk 0:02:08]} 13. Qxd4 {[%clk 0:01:53]}  e5 {[%clk 0:02:09]} 14. Qd2 {[%clk 0:01:29]}  Be7 {[%clk 0:02:07]} 15. Qxb4 {[%clk 0:01:25]}  Rb8 {[%clk 0:01:41]} 16. Qa5 {[%clk 0:01:02]}  Qc8 {[%clk 0:01:29]} 17. O-O-O {[%clk 0:00:37]}  O-O {[%clk 0:00:52]} 18. f3 {[%clk 0:00:33]}  Bd5 {[%clk 0:00:48]} 19. Rxd5 {[%clk 0:00:31]}  Nxd5 {[%clk 0:00:11]} 20. Qxd5+ {[%clk 0:00:32]}  Kh8 {[%clk 0:00:12]} 21. Bd3 {[%clk 0:00:30]}  Qc7 {[%clk 0:00:09]} 22. h4 {[%clk 0:00:25]}  Rb4 {[%clk 0:00:09]} 23. h5 {[%clk 0:00:20]}  Bg5+ {[%clk 0:00:05]} 24. Kb1 {[%clk 0:00:17]}  Rc8 {[%clk 0:00:02]} 25. Qe4 {[%clk 0:00:14]}  g6 {[%clk 0:00:01]} 26. hxg6 {[%clk 0:00:14]}  h6 {[%clk 0:00:02]} 27. g7+ {[%clk 0:00:13]}  Kxg7 {[%clk 0:00:02]} 28. Qh7+ {[%clk 0:00:12]}  Kf8 {[%clk 0:00:03]} 29. Qxc7 {[%clk 0:00:10]}  Rxc7 {[%clk 0:00:04]} 30. Nxd6 {[%clk 0:00:10]}  Ke7 {[%clk 0:00:04]} 31. Ne4 {[%clk 0:00:08]}  Bf4 {[%clk 0:00:04]} 32. Bxf4 {[%clk 0:00:08]}  exf4 {[%clk 0:00:05]} 33. b3 {[%clk 0:00:08]}  Rb6 {[%clk 0:00:05]} 34. Rh4 {[%clk 0:00:07]}  Rg6 {[%clk 0:00:05]} 35. Rxf4 {[%clk 0:00:06]}  Rxg2 {[%clk 0:00:05]} 36. Kb2 {[%clk 0:00:07]}  Rc8 {[%clk 0:00:06]} 37. Rh4 {[%clk 0:00:06]}  Rh8 {[%clk 0:00:06]} 38. Nc3 {[%clk 0:00:06]}  h5 {[%clk 0:00:06]} 39. Nd5+ {[%clk 0:00:06]}  Ke6 {[%clk 0:00:06]} 40. Nf4+ {[%clk 0:00:04]}  Ke5 {[%clk 0:00:07]} 41. Nxg2 {[%clk 0:00:05]} 1-0


[Site "https://www.chess.com"]